Cogmind - Beta 12 @@@ ROGUE MODE // 2023.05.09 @ 19:45:13 Player: archydragon Result: Destroyed by L-31 Rogue with Katana Performance ------------- Evolutions (2) 1000 Regions Visited (3) 600 Robots Destroyed (66) 330 Value Destroyed (2081) 2081 Prototype IDs (5) 100 Alien Tech Used (0) 0 Bonus (71) 71 TOTAL SCORE: 4182 Bonus ------- High Alert Combat Kills 71 Cogmind --------- Core Integrity 0/550 Matter 385/450 Energy 84/160 System Corruption 8% Temperature Cool (0) Movement Treading (240) Ox1 Location -8/Materials Parts ------- > --- POWER (1) -------- Light Nuclear Core > --- PROPULSION (3) --- Light Treads > --- UTILITY (5) ------ Improved Heat Sink Large Storage Unit Compact Matter Pod Structural Scanner Improved Power Shielding > --- WEAPON (2) ------- Mini Grenade Launcher Scythe > --- INVENTORY (15) --- Light Ion Engine Reinforced Ion Engine Light Deuterium Engine Huge Storage Unit Trap Scanner Visual Processing Unit Salvage Targeting Computer Relay Coupler [Grunt] (20) Field Laser Heavy Laser Heavy Particle Cannon Advanced EMP Blaster Mining Laser Hammer Peak State ------------ > --- POWER ------------ Light Nuclear Core > --- PROPULSION ------- Light Treads Advanced Treads > --- UTILITY ---------- Improved Heat Sink Large Storage Unit Medium Battery Improved Terrain Scanner Improved Power Shielding > --- WEAPON ----------- Enhanced Autogun Advanced EMP Blaster > --- INVENTORY -------- Light Ion Engine Light Deuterium Engine Huge Storage Unit Compact Matter Pod Structural Scanner Trap Scanner Visual Processing Unit Salvage Targeting Computer High-powered Tractor Beam Heavy EM Pulse Gun Field Laser Beam Cannon Heavy Particle Cannon Mini Grenade Launcher Mining Laser [Rating: 29] Favorites ----------- Power Ion Engine Engine Ion Engine Power Core Light Nuclear Core Propulsion Aluminum Leg Treads Light Treads Leg Aluminum Leg Wheel Wheel Utility Large Storage Unit Device Structural Scanner Storage Large Storage Unit Protection Hardened Light Armor Plating Weapon Assault Rifle Energy Gun Particle Gun Energy Cannon Beam Cannon Ballistic Gun Assault Rifle Launcher Grenade Launcher Special Weapon Mining Laser Slashing Weapon Scythe Build | -11 -10 -9 -8 ------- Run | Jun Mat Mat Mat Slots Evolved 4 | . . 2 2 Power . | . . . . Propulsion 1 | . . 1 . Utility 3 | . . 1 2 Weapon . | . . . . Parts Attached 86 | 6 20 25 35 Power 10 | 1 3 2 4 Engine 9 | 1 3 2 3 Core 1 | . . . 1 Reactor . | . . . . Propulsion 20 | 2 6 6 6 Treads 3 | . . . 3 Leg 12 | . 4 5 3 Wheel 5 | 2 2 1 . Hover . | . . . . Flight . | . . . . Utility 24 | 1 5 6 12 Device 10 | . 2 2 6 Storage 9 | 1 3 2 3 Processor . | . . . . Hackware . | . . . . Protection 5 | . . 2 3 Artifact . | . . . . Weapon 32 | 2 6 11 13 Energy Gun 8 | . 3 2 3 Energy Cannon 3 | . . 1 2 Ballistic Gun 11 | 2 3 4 2 Ballistic Cannon . | . . . . Launcher 8 | . . 4 4 Special Weapon 1 | . . . 1 Impact Weapon . | . . . . Slashing Weapon 1 | . . . 1 Piercing Weapon . | . . . . Special Melee Weapon . | . . . . Unidentified Prototypes 3 | . . . 3 Corrupted Parts 2 | . . . 2 System Corruption 7 | . . . 7 Parts Lost 18 | . 2 2 14 Power 2 | . . . 2 Propulsion 8 | . 1 1 6 Utility 5 | . . 1 4 Weapon 3 | . 1 . 2 Highest Loss Streak 6 | . 1 1 6 To Critical Strikes . | . . . . Average Slot Usage (%) 93 | . 98 92 90 Engine 10 | . 14 11 7 Treads 4 | . . . 10 Leg 16 | . 20 22 10 Wheel 2 | . 6 3 . Device 16 | . 13 13 20 Storage 12 | . 14 11 12 Protection 6 | . . 8 9 Energy Gun 5 | . 5 9 1 Energy Cannon 2 | . . . 4 Ballistic Gun 13 | . 22 10 9 Naked Turns . | . . . . Heaviest Build 90 | 13 30 90 48 Greatest Support 62 | 26 26 36 62 Greatest Overweight (x) 3 | . 2 3 2 Average Overweight (x) . | . 1 1 . Largest Inventory Capacity 25 | 8 25 25 15 Average Capacity 15 | 7 14 15 14 Most Carried 15 | 4 15 15 15 Average Carried 12 | 2 10 13 13 Final Capacity 15 | 8 15 15 15 Final Carried 14 | 4 13 14 14 Class Distribution -------------------- 53% | Mutant 46% | Scavenger-Mutant Dominant Class ---------------- Mutant | -10/Materials Scavenger-Mutant | -9/Materials Scavenger-Mutant | -8/Materials Resources | -11 -10 -9 -8 ----------- Run | Jun Mat Mat Mat Matter Collected 2013 | 194 497 351 971 Remotely 285 | . . . 285 Salvage Created 2279 | . 660 500 1119 Parts 136 | . 32 37 67 Haulers Intercepted . | . . . . Recyclers Shooed 4 | . 1 . 3 Parts Field Recycled . | . . . . Retrieved Matter . | . . . . Parts Self-Destructed . | . . . . Prevented . | . . . . Kills | -11 -10 -9 -8 ------- Run | Jun Mat Mat Mat Combat Hostiles Destroyed 57 | . 15 18 24 Guns 33 | . 15 9 9 Cannons 6 | . . . 6 AOE 17 | . . 9 8 Classes Destroyed 10 | . 5 1 4 Worker 1 | . . . 1 Builder 2 | . . . 2 Tunneler 1 | . 1 . . Recycler 2 | . 1 . 1 Watcher 3 | . 1 2 . Swarmer 15 | . 2 7 6 Grunt 31 | . 13 7 11 Brawler 2 | . . . 2 Sentry 8 | . . 4 4 Hunter 1 | . . . 1 Best Kill Streak 7 | . 4 6 7 Combat Bots Only 6 | . 3 6 6 Max Kills in Single Turn 4 | . 1 4 3 Gunslinging . | . . . . Exploded 4 | . . 4 3 Melee . | . . . . Uniques/NPCs Destroyed . | . . . . Combat | -11 -10 -9 -8 -------- Run | Jun Mat Mat Mat Damage Taken 4196 | . 818 756 2622 Core 802 | . 139 96 567 Absorbed by Shields . | . . . . Redirected to Shielding 52 | . . . 52 Regen/Repaired (Parts) 257 | . . 71 186 Core Remaining (%) 73 | 100 44 76 . Volleys Fired 204 | . 69 54 81 Largest 2 | . 2 2 2 Hottest 112 | . 60 88 112 Shots Fired 392 | . 137 98 157 Gun 322 | . 137 86 99 Cannon 42 | . . . 42 Launcher 28 | . . 12 16 Special . | . . . . Kinetic 233 | . 111 53 69 Thermal 109 | . 26 33 50 Explosive 19 | . . 12 7 Electromagnetic 31 | . . . 31 Robot Hit Streak 9 | . 9 9 9 Robot Miss Streak 6 | . 5 6 6 Penetration Max . | . . . . Secondary Targets 6 | . 4 1 1 Max Gunslinging Chain 1 | . 1 1 1 Shots Hit Robots 234 | . 85 51 98 Core Hits 120 | . 31 35 54 Critical Kills 1 | . . . 1 Critical Parts Destroyed 2 | . . 1 1 Critical Strikes 6 | . . 3 3 Burn 3 | . . 2 1 Destroy 3 | . . 1 2 Melee Attacks 2 | . . . 2 Impact . | . . . . Slashing 2 | . . . 2 Piercing . | . . . . Sneak Attacks . | . . . . Combat Hostiles . | . . . . Follow-up Attacks . | . . . . Damage Inflicted 4756 | . 1072 1235 2449 Guns 2736 | . 1066 696 974 Cannons 556 | . . . 556 Explosions 1390 | . . 530 860 Melee 44 | . . . 44 Ramming 30 | . 6 9 15 Kinetic 2000 | . 903 450 647 Thermal 993 | . 163 246 584 Explosive 1046 | . . 530 516 Electromagnetic 643 | . . . 643 Impact . | . . . . Slashing 44 | . . . 44 Piercing . | . . . . Highest Corruption 8 | . . 1 8 Average Corruption 2 | . . 1 2 Corruption Purged . | . . . . Corruption Blocked . | . . . . Effects 13 | . . 3 10 Message Errors 3 | . . . 3 Matter Fused 1 | . . . 1 Heat Flow Errors 5 | . . 1 4 Energy Discharges 2 | . . 1 1 Data Loss (minor) 1 | . . . 1 Misfires 1 | . . 1 . Overload Shots . | . . . . Overflow Damage 82 | . . 27 55 Projectiles 8 | . . . 8 Explosions 61 | . . 27 34 Melee 13 | . . . 13 Knockbacks . | . . . . Impact . | . . . . Kinetic . | . . . . Secondary . | . . . . Self-Inflicted Damage 216 | . 3 1 212 Shots 10 | . . . 10 Rammed 6 | . 1 1 4 Targets Rammed 8 | . 1 3 4 Kicked 2 | . . 2 . Crushed . | . . . . Highest Temperature 577 | . 63 226 577 Average Temperature 77 | . 23 60 96 Received Heat Transfer 1608 | . 411 306 891 Effects 5 | . . . 5 Shutdowns 2 | . . . 2 Energy Bleed 1 | . . . 1 Damage (minor) 1 | . . . 1 Damage (core) 1 | . . . 1 Siege Activations . | . . . . Robots Corrupted . | . . . . Combat Hostiles . | . . . . Parts Fried 1 | . . . 1 Impact Corruptions . | . . . . Robots Melted 1 | . . . 1 Combat Hostiles 1 | . . . 1 Parts Melted 3 | . . . 3 Heat Transferred 2451 | . 375 744 1332 Parts Sabotaged . | . . . . Parts Stolen . | . . . . Parts Stripped . | . . . . Power Chain Reactions 1 | . . . 1 Missiles Intercepted . | . . . . Alert | -11 -10 -9 -8 ------- Run | Jun Mat Mat Mat Peak Influence 571 | . 263 409 571 Initial 134 | . . 110 134 Average 205 | . 140 255 218 Maximum Alert Level 2 | . 1 2 2 Low Security (%) 63 | 100 76 45 65 Level 1 29 | . 23 53 18 Level 2 7 | . . 1 16 Level 3 . | . . . . Level 4 . | . . . . Level 5 . | . . . . High Security . | . . . . Max Security . | . . . . Squads Dispatched 11 | . 3 3 5 Investigation 6 | . 2 3 1 Extermination . | . . . . Reinforcement 2 | . 1 . 1 Assault 1 | . . . 1 Garrison 2 | . . . 2 Intercept . | . . . . Searches Triggered . | . . . . Construction Impeded 1 | . . . 1 Haulers Reinforced . | . . . . Active Scanning Responses . | . . . . Cargo Convoy Interrupts . | . . . . Stealth | -11 -10 -9 -8 --------- Run | Jun Mat Mat Mat Distress Signals 2 | . 1 . 1 Communications Jammed . | . . . . Distress Signals . | . . . . Times Spotted 88 | . 28 23 37 Peak Tracking Total 7 | . 5 6 7 Tactical Retreats 3 | . 2 . 1 Traps | -11 -10 -9 -8 ------- Run | Jun Mat Mat Mat Traps Triggered 2 | . . 2 . Indirectly . | . . . . Trap Hack Attempts . | . . . . Triggered . | . . . . Disarmed . | . . . . Reprogrammed . | . . . . Reused . | . . . . Traps Extracted . | . . . . Installed . | . . . . Triggered . | . . . . Machines | -11 -10 -9 -8 ---------- Run | Jun Mat Mat Mat Machines Disabled 6 | . . 1 5 Max in Single Turn 2 | . . 1 2 Garrison Access 1 | . . . 1 Machines Repaired . | . . . . Machines Sabotaged . | . . . . Overloaded Fab Kills . | . . . . Hacking | -11 -10 -9 -8 --------- Run | Jun Mat Mat Mat Machines Accessed 15 | . 3 5 7 Terminals 9 | . 3 1 5 Fabricators . | . . . . Repair Stations 3 | . . 2 1 Recycling Units 1 | . . . 1 Scanalyzers 2 | . . 2 . Garrison Access . | . . . . Total Hacks 50 | . 13 18 19 Successful 35 | . 9 13 13 Failed 15 | . 4 5 6 Catastrophic 4 | . 2 2 . Database Lockouts . | . . . . Manual . | . . . . Terminals 30 | . 13 3 14 Fabricators . | . . . . Repair Stations 9 | . . 5 4 Recycling Units 1 | . . . 1 Scanalyzers 10 | . . 10 . Garrison Access . | . . . . Terminal Hacks 18 | . 9 1 8 Record 7 | . 4 1 2 Prototype ID Bank 1 | . 1 . . Level Access Points 1 | . 1 . . Branch Access Points 1 | . . . 1 Emergency Access Points 2 | . 1 . 1 Alert Level 1 | . . . 1 Locate Traps 2 | . 1 . 1 Security Status 1 | . . . 1 Recall Investigation 1 | . 1 . . Zone Layout 1 | . . . 1 Fabricator Hacks . | . . . . Repair Station Hacks 6 | . . 2 4 Scan Component 3 | . . 1 2 Repair 3 | . . 1 2 Recycling Unit Hacks 1 | . . . 1 Report Inventory 1 | . . . 1 Scanalyzer 10 | . . 10 . Insert Component 5 | . . 5 . Analyze 5 | . . 5 . Garrison Access Hacks . | . . . . Unauthorized Hacks . | . . . . Terminals . | . . . . Fabricators . | . . . . Repair Stations . | . . . . Recycling Units . | . . . . Scanalyzers . | . . . . Garrison Access . | . . . . Data Cores Recovered . | . . . . Used . | . . . . Hacking Detections 12 | . 3 4 5 Full Trace Events 7 | . 2 3 2 Feedback Events 1 | . . 1 . Corruption 1 | . . 1 . Feedback Blocked . | . . . . Robot Schematics Acquired . | . . . . Robots Built . | . . . . Authchips . | . . . . Time . | . . . . Total Robot Build Rating . | . . . . Part Schematics Acquired 5 | . . 5 . Parts Built . | . . . . Authchips . | . . . . Time . | . . . . Total Part Build Rating . | . . . . Parts Repaired 3 | . . 1 2 Time 112 | . . 26 86 Parts Recycled . | . . . . Recycled Matter . | . . . . Retrieved Matter . | . . . . Retrieved Components . | . . . . Parts Scanalyzed 5 | . . 5 . Part Schematics Acquired 5 | . . 5 . Parts Damaged 1 | . . 1 . Bothacking | -11 -10 -9 -8 ------------ Run | Jun Mat Mat Mat Used RIF Installer . | . . . . Robots Hacked . | . . . . Non-combat . | . . . . Combat . | . . . . Robot Hacks Applied . | . . . . Relay Couplers Released 2 | . . . 2 Machine Destruction 2 | . . . 2 Fabnet Peak Effective % . | . . . . Robots Rewired . | . . . . Allies Hacked . | . . . . Hacks Repelled . | . . . . Allies | -11 -10 -9 -8 -------- Run | Jun Mat Mat Mat Total Allies . | . . . . Largest Group . | . . . . Highest-Rated Group . | . . . . Highest-Rated Ally . | . . . . Total Orders . | . . . . Ally Attacks . | . . . . Total Damage . | . . . . Kills . | . . . . Allies Corrupted . | . . . . Allies Melted . | . . . . Intel | -11 -10 -9 -8 ------- Run | Jun Mat Mat Mat Robot Analysis Total . | . . . . Derelict Logs Recovered . | . . . . Drone Launches . | . . . . Drone Recoveries . | . . . . Exploration | -11 -10 -9 -8 ------------- Run | Jun Mat Mat Mat Turns Passed 2988 | 48 780 877 1283 Spaces Moved 1263 | 36 318 368 541 Core 2 | 2 . . . Treads 335 | . . . 335 Legs 731 | . 204 321 206 Wheels 195 | 34 114 47 . Hover . | . . . . Flight . | . . . . Fastest Speed 50 | 50 90 86 152 Average Speed 171 | 90 161 179 177 Slowest Speed 260 | 100 260 190 260 Overloaded Moves . | . . . . Propulsion Burnouts . | . . . . Robots Hopped . | . . . . Cave-ins Triggered . | . . . . Exploration Rate (%) 35 | 3 61 44 35 Regions Visited 3 Branch Regions . Pre-discovered Areas . | . . . . Known Exits Taken 1 | . 1 . . Unknown Exits Taken 2 | 1 . 1 . Scrap Searched . | . . . . Spaces Dug . | . . . . Terrain Destroyed 118 | . . 50 68 Melee . | . . . . Projectile . | . . . . AOE 118 | . . 50 68 Terrain Rammed . | . . . . Walls Destroyed . | . . . . Machines Disabled . | . . . . Actions | -11 -10 -9 -8 --------- Run | Jun Mat Mat Mat Total 1699 | 51 447 483 718 Wait . | . . . . Move 1260 | 35 317 367 541 Hop . | . . . . Pick Up 96 | 10 26 20 40 Fast Attach . | . . . . Attach 33 | 6 6 5 16 Detach . | . . . . Swap 53 | . 14 20 19 Drop 43 | . 14 14 15 Fire 204 | . 69 54 81 Melee 2 | . . . 2 Ram 2 | . 1 1 . Kick 2 | . . 2 . Crush 4 | . . . 4 Escape Stasis . | . . . . Rewire . | . . . . Trap . | . . . . Miscellaneous . | . . . . Route ------- -11/Junkyard -10/Materials (discovered 3 exits: *Mat x3) -9/Materials (discovered 2 exits: *Mat x2) -8/Materials (discovered 1 exit: *Sto) History --------- Turn | Location | Event 12 | -11/Junkyard | Discovered new exit (range 16) 49 | -11/Junkyard | Entered Materials 89 | -10/Materials | Identified exit to Materials 312 | -10/Materials | Build established: Mutant 741 | -10/Materials | Core integrity fell below 50% 829 | -10/Materials | Entered another Materials area 829 | -9/Materials | Evolved 2 slots: Propulsion x1, Utility x1 1095 | -9/Materials | Discovered new exit (range 16) 1256 | -9/Materials | Build established: Scavenger-Mutant 1530 | -9/Materials | Repaired Aluminum Leg 1652 | -9/Materials | Discovered new exit (range 16) 1706 | -9/Materials | Entered another Materials area 1706 | -8/Materials | Evolved 2 slots: Utility x2 1796 | -8/Materials | Identified exit to Storage 2111 | -8/Materials | Lost 6 parts (1p2n2u1w) 2215 | -8/Materials | Core integrity fell below 50% 2252 | -8/Materials | Lost 3 parts (1p2n) 2505 | -8/Materials | Build established: Mutant 2510 | -8/Materials | Repaired Enh. Autogun 2549 | -8/Materials | Repaired Lrg. Storage Unit 2680 | -8/Materials | Garrison activated, responded to threat 2766 | -8/Materials | Core integrity fell below 20% 2989 | -8/Materials | Destroyed by L-31 Rogue with Katana Last Messages --------------- 02971_ R-06 Scavenger collects Corrupted Aluminum Leg. 02975_ R-06 Scavenger destroyed. 02975_ U-05 Engineer builds a Wall. 02977_ Lgt. Treads destroyed. 02978_ G-47 Trooper destroyed. 02978_ Destroyed Lgt. Nuclear Core. 02978_ U-05 Engineer destroyed. 02980_ P&GXQBCAGB4#V%0T2YU5IA 02983_ U-05 Engineer builds a Wall. 02985_ The unstable cave ceiling collapses. 02985_ K-01 Serf collects debris. 02985_ U-05 Engineer builds a Wall. 02986_ U-05 Engineer lays Concrete. 02986_ Adv. Treads destroyed. 02987_ U-05 Engineer builds a Wall. 02988_ Destroyed Imp. Ion Engine. Map ----- +----------------------------------------------------+ | ! = #########????????????????? | | = = ! #########????????????????? | | !%! = #########????????????????? | | #####+#+### ############ ###????????????????? | | #### ! [ # #########???# ####??????????????? | | ####^ # ##???#####??# ######?????????? | | ####^ # ###### #??# ## ?????????? | | ####^ # T #??# ## ?????????? | | #### # ###### #??# ?????????? | | #### # ###??## ##??# ##### ?????????? | | #####+######+#####??# #???# #???# ?????????? | | # ## T #### ###?# #???### #?????????? | | # ## """" ## #?# #?????# #?????????? | | + ## """" ## ! ###+####### #?????????? | | # ! ## """ / [%[ ## + ?????????? | | # ## ## = ## """ # ?????????? | | # ! ## """ ## ## """"" # ?????????? | | ######### """" ####+#### """"" # ?????????? | | ######### """" ## # """"" + ?????????? | | ##??????# ## ! # """ # ?????????? | | ##??????######+#### # ###^????????? | | ##???#????#### #### [ # #?#?^???????? | | ##????########|## #u "" !# ###?????????? | | ##????# ! #u# #u ############^?^??????? | | ##????# #m %! ######## ##?????????? | | ##????# %= =/ l@%= # ##?????????? | | ##????# """ # % !%= # ##?????????? | | ##????# #%=* # ##?????????? | | ##????# # ### + %##?????????? | | ##????######## ################ "" ##?^???????? | | ##?????####### ##### ### "Y ##^????????? | | #####???????????# #?????????????## "" ##?????????? | | #####???????????# #?????????????## ##?????????? | | ????????????????# #?????????????########?????????? | | ????????????????? ??????????????########?????????? | | ????????????????? ???????????????????????????????? | | ###?????????????? ??????????????#????????????????? | | ###?????????????? ???????????????????????????????? | | ##?????????????? ???????????????????????????????? | | ##?????????????? ???????????????????????????????? | | ##?????????????? ???????????????????????????????? | | ##??????????????????????????????????????????????? | | [##??????????????????????????????????????????????? | | ###??????????????????????????????????????????????? | | ###??????????????????????????????????????????????? | | #????????????????????????????????????????????????? | | #????????????????????????????????????????????????? | | #????????????????????????????????????????????????? | | #####????????????????????????????????????????????? | | #####????????????????????????????????????????????? | +----------------------------------------------------+ Best States ------------- Heat Dissipation 45 Energy Generation 14 Energy Capacity 310 Matter Stores 450 Matter Capacity 450 Sight Range 16 Terrain Scan Range 16 Terrain Scan Density 10 Armor Coverage 375 Power Shielding 66 Evasion (%) 42 Recoil Reduction 3 Item Schematics ----------------- Imp. Terrain Scanner | -9/Materials | Scanalyzed Hvy. EM Pulse Gun | -9/Materials | Scanalyzed Datajack | -9/Materials | Scanalyzed Lgt. EM Pulse Cannon | -9/Materials | Scanalyzed Imp. Ion Engine | -9/Materials | Scanalyzed Robot Schematics ------------------ None Fabricated ------------ Nothing Alien Tech Used ----------------- None Achievements -------------- It's Just You Oops Troublemaker Use The Force Challenges ------------ None Game ------ Seed MetafiberStealthCharger Manual? 0 Play Time 00:53:19 Cumulative 4.0 hours Start 2023.05.09 @ 17:51:41 End 2023.05.09 @ 19:45:13 Sessions 3 Manual Loads 0 Difficulty Rogue Special Mode None Game No. 5 Rogue 5 Adventurer 0 Explorer 0 Win Type - Total 0 Types 0/0/0/0/0/0/0/0/0 Lore% 5 Gallery% 8 Achievement% 7 Wizard Run 0 Options --------- ASCII 0 Keyboard 0 Movement Mouse Keybinds 0 Fullscreen 2 Font 24/Terminus Map View 76x50 Tactical HUD 1 Map Filters NONE Filters NONE Steam 1 RUN: cd563810-e0b3-4621-bae2-4a4ebfa7ae74